fUST/lending_fUST_20250206
["ID","MTS","AMOUNT","RATE_DAILY","PERIOD"]
[351757264,1738779049437,-818.55,0.00014634,2]
[351757267,1738779049447,-1094.31,0.00014634,2]
[351757268,1738779049457,-500.0,0.00014634,2]
[351757270,1738779049466,-500.0,0.00014634,2]
[351757272,1738779049476,-500.0,0.00014634,2]
[351757274,1738779049486,-3370.08,0.00014634,2]
[351757276,1738779049496,-1103.98,0.00014634,2]
[351757278,1738779049505,-500.0,0.00014634,2]
[351757280,1738779049515,-500.0,0.00014634,2]
[351757282,1738779049524,-151.0,0.00014634,2]
[351757284,1738779049534,-1458.47,0.00014634,2]
[351757286,1738779049544,-500.0,0.00014634,2]
[351757288,1738779049554,-500.0,0.00014634,2]
[351757290,1738779049564,-500.0,0.00014634,2]
[351757292,1738779049573,-514.93,0.00014634,2]
[351757294,1738779049583,-645.81,0.00014634,2]
[351757296,1738779049592,-500.0,0.00014634,2]
[351757298,1738779049602,-500.0,0.00014634,2]
[351757299,1738779049611,-629.9,0.00014634,2]
[351757301,1738779049620,-1878.06,0.00014634,2]
[351757303,1738779049630,-559.73,0.00014634,2]
[351757305,1738779049639,-163.703266,0.00014634,2]
[351757307,1738779049648,-163.703266,0.00014634,2]
[351757309,1738779049657,-500.0,0.00014634,2]
[351757310,1738779049667,-194.32912,0.00014634,2]
[351757311,1738779049676,-542.27,0.00014634,2]
[351757312,1738779049686,-881.14,0.00014634,2]
[351757313,1738779049695,-500.0,0.00014634,2]
[351757314,1738779049704,-3890.88,0.00014634,2]
[351757315,1738779049713,-1220.28,0.00014634,2]
[351757316,1738779049725,-500.0,0.00014635,2]
[351757317,1738779049736,-500.0,0.00014635,2]
[351757318,1738779049745,-500.0,0.00014635,2]
[351757319,1738779049756,-500.0,0.00014635,2]
[351757320,1738779049766,-1459.14,0.00014635,2]
[351757321,1738779049777,-500.0,0.00014635,2]
[351757322,1738779049787,-588.67,0.00014635,2]
[351757323,1738779049798,-508.1595289,0.00014635,2]
[351757324,1738779049808,-500.0,0.00014635,2]
[351757325,1738779049818,-500.0,0.00014635,2]
[351757327,1738779049828,-500.0,0.00014635,2]
[351757329,1738779049837,-523.90169399,0.00014635,2]
[351757331,1738779049847,-500.0,0.00014635,2]
[351757332,1738779049856,-500.0,0.00014635,2]
[351757333,1738779049866,-500.0,0.00014635,2]
[351757334,1738779049875,-500.0,0.00014635,2]
[351757336,1738779049885,-500.0,0.00014635,2]
[351757338,1738779049895,-500.0,0.00014635,2]
[351757340,1738779049904,-500.0,0.00014635,2]
[351757342,1738779049914,-500.0,0.00014635,2]
[351757344,1738779049923,-559.41917771,0.00014635,2]
[351757346,1738779049933,-500.0,0.00014635,2]
[351757348,1738779049942,-500.0,0.00014635,2]
[351757350,1738779049952,-500.0,0.00014635,2]
[351757352,1738779049962,-500.0,0.00014635,2]
[351757354,1738779049971,-500.0,0.00014635,2]
[351757356,1738779049981,-500.0,0.00014635,2]
[351757358,1738779049991,-500.0,0.00014635,2]
[351757360,1738779050001,-500.0,0.00014635,2]
[351757362,1738779050010,-500.0,0.00014635,2]
[351757364,1738779050019,-500.0,0.00014635,2]
[351757366,1738779050029,-527.79871929,0.00014635,2]
[351757421,1738779050672,-500.0,0.00014495,2]
[351757422,1738779050682,-501.57824832,0.00014632,2]
[351757436,1738779050829,-721.41128071,0.00014635,2]
[351757438,1738779050839,-500.0,0.00014635,2]
[351757440,1738779050849,-568.38,0.00014635,2]
[351757442,1738779050858,-500.0,0.00014635,2]
[351757444,1738779050867,-500.0,0.00014635,2]
[351757446,1738779050877,-500.0,0.00014635,2]
[351757448,1738779050886,-500.0,0.00014635,2]
[351757450,1738779050896,-500.0,0.00014635,2]
[351757452,1738779050906,-500.0,0.00014635,2]
[351757454,1738779050916,-500.0,0.00014635,2]
[351757456,1738779050925,-500.0,0.00014635,2]
[351757458,1738779050936,-861.59,0.00014635,2]
[351757460,1738779050946,-1307.37,0.00014635,2]
[351757462,1738779050955,-500.0,0.00014635,2]
[351757464,1738779050965,-761.03,0.00014635,2]
[351757466,1738779050974,-503.38929507,0.00014635,2]
[351757468,1738779050984,-500.0,0.00014635,2]
[351757470,1738779050993,-500.0,0.00014635,2]
[351757472,1738779051003,-516.19,0.00014635,2]
[351757474,1738779051012,-500.0,0.00014635,2]
[351757476,1738779051022,-507.42,0.00014635,2]
[351757478,1738779051031,-500.0,0.00014635,2]
[351757480,1738779051041,-989.8,0.00014635,2]
[351757482,1738779051052,-500.0,0.00014635,2]
[351757485,1738779051062,-320.52915712,0.00014635,2]
[351757487,1738779051072,-500.0,0.00014635,2]
[351757489,1738779051081,-529.59,0.00014635,2]
[351757490,1738779051090,-500.0,0.00014635,2]
[351757492,1738779051099,-500.0,0.00014635,2]
[351757494,1738779051108,-500.0,0.00014635,2]
[351757496,1738779051117,-502.5275146,0.00014635,2]
[351757499,1738779051127,-500.0,0.00014635,2]
[351757500,1738779051136,-500.0,0.00014635,2]
[351757503,1738779051146,-500.0,0.00014635,2]
[351757505,1738779051156,-720.86,0.00014635,2]
[351757507,1738779051166,-23.17568683,0.00014635,2]
[351757509,1738779051179,-476.82431317,0.00014635,2]
[351757511,1738779051188,-518.17568683,0.00014635,2]
[351757513,1738779051200,-521.83431317,0.00014635,2]
[351757515,1738779051210,-500.0,0.00014635,2]
[351757517,1738779051219,-500.0,0.00014635,2]
[351757519,1738779051229,-827.88,0.00014635,2]
[351757521,1738779051238,-500.0,0.00014635,2]
[351757523,1738779051248,-916.12,0.00014635,2]
[351757526,1738779051257,-500.0,0.00014635,2]
[351757528,1738779051266,-500.0,0.00014635,2]
[351757529,1738779051276,-500.0,0.00014635,2]
[351757532,1738779051285,-1943.26,0.00014635,2]
[351757533,1738779051294,-500.0,0.00014635,2]
[351757535,1738779051303,-1704.48,0.00014635,2]
[351757538,1738779051314,-500.0,0.00014635,2]
[351757539,1738779051324,-180.14438665,0.00014635,2]
[351757542,1738779051334,-500.0,0.00014635,2]
[351757544,1738779051343,-500.0,0.00014635,2]
[351757546,1738779051353,-188.0,0.00014635,2]
[351757548,1738779051362,-231.74917396,0.00014635,2]
[351757550,1738779051372,-500.0,0.00014635,2]
[351757552,1738779051381,-500.0,0.00014635,2]
[351757554,1738779051391,-500.0,0.00014635,2]
[351757556,1738779051400,-500.0,0.00014635,2]
[351757558,1738779051410,-909.93,0.00014635,2]
[351757560,1738779051419,-500.0,0.00014635,2]
[351757562,1738779051428,-500.0,0.00014635,2]
[351757564,1738779051438,-500.0,0.00014635,2]
[351757566,1738779051447,-500.0,0.00014635,2]
[351757568,1738779051456,-500.0,0.00014635,2]
[351757570,1738779051466,-478.70808972,0.00014635,2]
[351757572,1738779051476,-500.0,0.00014635,2]
[351757573,1738779051485,-500.0,0.00014635,2]
[351757574,1738779051495,-1095.92,0.00014635,2]
[351757575,1738779051505,-510.63,0.00014635,2]
[351757576,1738779051515,-500.0,0.00014635,2]
[351757577,1738779051524,-300.0,0.00014635,2]
[351757578,1738779051534,-500.0,0.00014635,2]
[351757579,1738779051545,-319.97335594,0.00014635,2]
[351757580,1738779051562,-1253.64929774,0.00014493,2]
[351757581,1738779051587,-621.86070226,0.00014493,2]
[351757582,1738779051597,-180.02664406,0.00014635,2]
[351757583,1738779051606,-500.0,0.00014635,2]
[351757584,1738779051616,-605.33,0.00014635,2]
[351757585,1738779051626,-500.0,0.00014635,2]
[351757586,1738779051635,-500.0,0.00014635,2]
[351757587,1738779051644,-500.0,0.00014635,2]
[351757588,1738779051654,-20.43084363,0.00014635,2]
[351757589,1738779051844,-1875.51,0.0001463,2]
[351757590,1738779051854,-479.56915637,0.00014635,2]
[351757591,1738779051863,-500.0,0.00014635,2]
[351757592,1738779051872,-511.63,0.00014635,2]
[351757593,1738779051882,-500.0,0.00014635,2]
[351757594,1738779051893,-500.0,0.00014635,2]
[351757595,1738779051902,-66.27895615,0.00014635,2]
[351757597,1738779051914,-433.72104385,0.00014635,2]
[351757599,1738779051924,-291.20458556,0.00014635,2]
[351757656,1738779052464,-500.0,0.00014494,2]
[351757659,1738779052474,-151.0,0.00014632,2]
[351757660,1738779052483,-208.79541444,0.00014635,2]
[351757662,1738779052493,-500.0,0.00014635,2]
[351757664,1738779052502,-500.0,0.00014635,2]
[351757667,1738779052512,-500.0,0.00014635,2]
[351757669,1738779052521,-500.0,0.00014635,2]
[351757671,1738779052530,-151.0,0.00014635,2]
[351757672,1738779052539,-1075.49,0.00014635,2]
[351757674,1738779052551,-590.64,0.00014635,2]
[351757676,1738779052561,-151.0,0.00014635,2]
[351757678,1738779052571,-500.0,0.00014635,2]
[351757680,1738779052580,-751.65,0.00014635,2]
[351757682,1738779052590,-500.0,0.00014635,2]
[351757684,1738779052599,-151.0,0.00014635,2]
[351757686,1738779052609,-500.0,0.00014635,2]
[351757688,1738779052618,-500.0,0.00014635,2]
[351757690,1738779052627,-500.0,0.00014635,2]
[351757692,1738779052637,-1962.04,0.00014635,2]
[351757694,1738779052646,-500.0,0.00014635,2]
[351757696,1738779052655,-500.0,0.00014635,2]
[351757698,1738779052665,-1665.0,0.00014635,2]
[351757700,1738779052675,-1019.97,0.00014635,2]
[351757702,1738779052685,-613.63,0.00014635,2]
[351757704,1738779052694,-515.21274637,0.00014635,2]
[351757706,1738779052704,-794.49,0.00014635,2]
[351757708,1738779052713,-500.0,0.00014635,2]
[351757710,1738779052723,-1023.08,0.00014635,2]
[351757712,1738779052736,-1000.0,0.00014635,2]
[351757714,1738779052749,-500.0,0.00014635,2]
[351757716,1738779052759,-500.0,0.00014635,2]
[351757718,1738779052768,-725.72,0.00014635,2]
[351757720,1738779052778,-500.0,0.00014635,2]
[351757722,1738779052787,-151.0,0.00014635,2]
[351757724,1738779052798,-151.0,0.00014635,2]
[351757726,1738779052809,-500.0,0.00014635,2]
[351757728,1738779052818,-185.55332611,0.00014635,2]
[351757729,1738779052828,-151.0,0.00014635,2]
[351757730,1738779052837,-500.0,0.00014635,2]
[351757731,1738779052846,-500.0,0.00014635,2]
[351757732,1738779052856,-500.0,0.00014635,2]
[351757733,1738779052865,-500.0,0.00014635,2]
[351757734,1738779052874,-500.0,0.00014635,2]
[351757735,1738779052884,-500.0,0.00014635,2]
[351757736,1738779052893,-591.57814628,0.00014635,2]
[351757737,1738779052903,-500.0,0.00014635,2]
[351757738,1738779052912,-500.0,0.00014635,2]
[351757739,1738779052922,-151.0,0.00014635,2]
[351757740,1738779052931,-500.0,0.00014635,2]
[351757741,1738779052942,-500.0,0.00014635,2]
[351757742,1738779052951,-500.0,0.00014635,2]
[351757754,1738779053093,-500.0,0.00014635,2]
[351757756,1738779053103,-607.46858783,0.00014635,2]
[351757758,1738779053114,-347.86449026,0.00014635,2]
[351757760,1738779053124,-500.0,0.00014635,2]
[351757762,1738779053134,-998.54,0.00014635,2]
[351757764,1738779053144,-505.16,0.00014635,2]
[351757766,1738779053154,-500.0,0.00014635,2]
[351757768,1738779053164,-1408.08,0.00014635,2]
[351757770,1738779053174,-500.0,0.00014635,2]
[351757772,1738779053184,-500.0,0.00014635,2]
[351757774,1738779053194,-500.0,0.00014635,2]
[351757776,1738779053204,-500.0,0.00014635,2]
[351757779,1738779053214,-1063.21,0.00014635,2]
[351757780,1738779053224,-500.0,0.00014635,2]
[351757783,1738779053234,-801.8,0.00014635,2]
[351757785,1738779053243,-151.0,0.00014635,2]
[351757786,1738779053253,-500.0,0.00014635,2]
[351757789,1738779053263,-151.0,0.00014635,2]
[351757790,1738779053273,-500.0,0.00014635,2]
[351757792,1738779053282,-500.0,0.00014635,2]
[351757794,1738779053291,-500.0,0.00014635,2]
[351757796,1738779053306,-500.0,0.00014635,2]
[351757798,1738779053316,-1010.74,0.00014635,2]
[351757800,1738779053326,-500.0,0.00014635,2]
[351757802,1738779053335,-500.0,0.00014635,2]
[351757805,1738779053345,-500.0,0.00014635,2]
[351757807,1738779053354,-511.67033962,0.00014635,2]
[351757808,1738779053364,-151.0,0.00014635,2]
[351757810,1738779053373,-151.0,0.00014635,2]
[351757813,1738779053383,-151.0,0.00014635,2]
[351757815,1738779053392,-151.0,0.00014635,2]
[351757816,1738779053401,-603.09,0.00014635,2]
[351757818,1738779053411,-500.0,0.00014635,2]
[351757821,1738779053420,-500.0,0.00014635,2]
[351757822,1738779053430,-500.0,0.00014635,2]
[351757825,1738779053439,-510.55742378,0.00014635,2]
[351757827,1738779053449,-466.46111371,0.00014635,2]
[351761543,1738779139362,338.600618,0.00013973,2]
[351761544,1738779231644,2659.37419177,0.00013671,2]
[351761545,1738779231678,4052.61542383,0.00013671,2]
[351761566,1738780022334,337.876195,0.00013973,2]
[351761595,1738780232085,-500.0,0.00014164,2]
[351761596,1738780232095,-300.0,0.00014308,2]
[351761597,1738780232104,-9741.1317811,0.00014309,2]
[351761598,1738780232118,-198.30286316,0.0001439,2]
[351761599,1738780232127,-287.32821101,0.00014484,2]
[351761600,1738780232136,-500.0,0.00014489,2]
[351761601,1738780232146,-2168.55,0.00014489,2]
[351761602,1738780232156,-1348.91,0.00014489,2]
[351761603,1738780232165,-1024.87,0.00014489,2]
[351761604,1738780232174,-500.0,0.00014489,2]
[351761605,1738780232183,-31.68073796,0.00014489,2]
[351761606,1738780232224,-969.87,0.00014489,2]
[351761607,1738780232252,-2150.51926204,0.00014489,2]
[351761608,1738780232261,-500.0,0.00014489,2]
[351761609,1738780232270,-2257.85016492,0.00014489,2]
[351761610,1738780232279,-500.0,0.00014489,2]
[351761611,1738780232289,-706.02,0.00014489,2]
[351761612,1738780232298,-8777.85,0.00014489,2]
[351761613,1738780232310,-500.0,0.00014489,2]
[351761614,1738780232319,-500.0,0.00014489,2]
[351761615,1738780232328,-173.75041786,0.00014489,2]
[351761616,1738780232338,-702.4,0.00014489,2]
[351761617,1738780232347,-500.0,0.00014489,2]
[351761618,1738780232356,-500.0,0.00014489,2]
[351761619,1738780232366,-703.26,0.00014489,2]
[351761620,1738780232375,-636.75,0.0001449,2]
[351761621,1738780232384,-14511.09898568,0.0001449,2]
[351761648,1738780237815,-1162.37101432,0.0001449,2]
[351761651,1738780237826,-501.49,0.0001449,2]
[351761653,1738780237836,-500.0,0.0001449,2]
[351761655,1738780237846,-3451.82158902,0.0001449,2]
[351761657,1738780237859,-2614.27841098,0.0001449,2]
[351761659,1738780237869,-5909.01291737,0.0001449,2]
[351761662,1738780237888,-1768.78708263,0.0001449,2]
[351761664,1738780237898,-3276.94,0.0001449,2]
[351761666,1738780237908,-500.0,0.0001449,2]
[351761668,1738780237917,-500.0,0.0001449,2]
[351761670,1738780237929,-2757.83,0.0001449,2]
[351761672,1738780237939,-1132.2,0.0001449,2]
[351761674,1738780237950,-561.01,0.0001449,2]
[351761677,1738780237961,-500.0,0.0001449,2]
[351761679,1738780237971,-1099.28,0.0001449,2]
[351761681,1738780237980,-500.0,0.0001449,2]
[351761683,1738780237989,-915.53,0.0001449,2]
[351761685,1738780237999,-500.0,0.0001449,2]
[351761687,1738780238010,-500.0,0.0001449,2]
[351761689,1738780238020,-500.0,0.0001449,2]
[351761691,1738780238030,-500.0,0.0001449,2]
[351761693,1738780238040,-2938.05,0.0001449,2]
[351761695,1738780238050,-2792.67,0.0001449,2]
[351761697,1738780238067,-7273.8,0.0001449,2]
[351761699,1738780238078,-500.0,0.0001449,2]
[351761702,1738780238091,-12465.9,0.0001449,2]
[351761704,1738780238102,-500.0,0.0001449,2]
[351761706,1738780238113,-562.16,0.0001449,2]
[351761708,1738780238127,-693.68,0.0001449,2]
[351761709,1738780238137,-2878.33,0.0001449,2]
[351761712,1738780238147,-8753.23,0.0001449,2]
[351761714,1738780238159,-500.0,0.0001449,2]
[351761716,1738780238169,-500.0,0.0001449,2]
[351761717,1738780238179,-4448.48,0.0001449,2]
[351761719,1738780238190,-3045.88,0.0001449,2]
[351761721,1738780238200,-1307.18,0.0001449,2]
[351761723,1738780238210,-2869.47,0.0001449,2]
[351761725,1738780238220,-318.93423639,0.0001449,2]
[351761728,1738780238231,-500.0,0.00014491,2]
[351761729,1738780238241,-500.0,0.00014491,2]
[351761732,1738780238251,-1095.0,0.00014491,2]
[351761734,1738780238261,-2982.68,0.00014491,2]
[351761736,1738780238271,-500.0,0.00014491,2]
[351761738,1738780238281,-500.0,0.00014491,2]
[351761739,1738780238291,-500.0,0.00014491,2]
[351761741,1738780238301,-538.68,0.00014491,2]
[351761743,1738780238316,-2187.36,0.00014491,2]
[351761746,1738780238327,-748.08,0.00014491,2]
[351761748,1738780238338,-503.89,0.00014491,2]
[351761750,1738780238348,-500.0,0.00014491,2]
[351761752,1738780238358,-500.0,0.00014491,2]
[351761754,1738780238368,-1467.76,0.00014491,2]
[351761756,1738780238377,-352.54752496,0.00014491,2]
[351761758,1738780238387,-500.0,0.00014491,2]
[351761760,1738780238398,-501.74,0.00014491,2]
[351761762,1738780238408,-501.74,0.00014491,2]
[351761764,1738780238417,-501.74,0.00014491,2]
[351761766,1738780238427,-501.74,0.00014491,2]
[351761768,1738780238437,-501.74,0.00014491,2]
[351761770,1738780238447,-625.76,0.00014491,2]
[351761772,1738780238457,-2645.18,0.00014491,2]
[351761774,1738780238468,-1058.77,0.00014491,2]
[351761776,1738780238478,-1759.09,0.00014491,2]
[351761778,1738780238489,-1592.88,0.00014491,2]
[351761780,1738780238499,-500.0,0.00014491,2]
[351761782,1738780238509,-766.22,0.00014491,2]
[351761784,1738780238519,-500.0,0.00014491,2]
[351761786,1738780238528,-500.0,0.00014491,2]
[351761788,1738780238537,-500.0,0.00014491,2]
[351761790,1738780238547,-1516.9,0.00014491,2]
[351761792,1738780238558,-1706.57,0.00014491,2]
[351761794,1738780238568,-622.76,0.00014491,2]
[351761796,1738780238578,-500.0,0.00014491,2]
[351761798,1738780238588,-514.42,0.00014491,2]
[351761800,1738780238598,-1029.63,0.00014491,2]
[351761802,1738780238608,-1988.32,0.00014491,2]
[351761804,1738780238619,-500.0,0.00014491,2]
[351761806,1738780238628,-1170.42,0.00014491,2]
[351761808,1738780238639,-2543.97,0.00014491,2]
[351761810,1738780238648,-908.66,0.00014491,2]
[351761814,1738780238670,-500.0,0.00014491,2]
[351761817,1738780238688,-500.0,0.00014491,2]
[351761820,1738780238704,-1241.99,0.00014491,2]
[351761822,1738780238719,-500.0,0.00014491,2]
[351761825,1738780238734,-500.0,0.00014491,2]
[351761827,1738780238749,-500.0,0.00014491,2]
[351761830,1738780238766,-500.0,0.00014491,2]
[351761832,1738780238780,-500.0,0.00014491,2]
[351761835,1738780238797,-500.0,0.00014491,2]
[351761838,1738780238812,-500.0,0.00014491,2]
[351761840,1738780238827,-1058.65,0.00014491,2]
[351761843,1738780238841,-500.0,0.00014491,2]
[351761845,1738780238857,-500.0,0.00014491,2]
[351761848,1738780238870,-500.0,0.00014491,2]
[351761850,1738780238883,-682.3,0.00014491,2]
[351761852,1738780238895,-500.0,0.00014491,2]
[351761855,1738780238908,-736.85,0.00014491,2]
[351761857,1738780238922,-4013.82,0.00014491,2]
[351761860,1738780238936,-1378.51,0.00014491,2]
[351761862,1738780238952,-500.0,0.00014491,2]
[351761865,1738780238967,-3205.75,0.00014491,2]
[351761868,1738780238982,-500.0,0.00014491,2]
[351761870,1738780238994,-500.0,0.00014491,2]
[351761872,1738780239005,-632.19,0.00014491,2]
[351761874,1738780239017,-920.41,0.00014491,2]
[351761877,1738780239033,-500.0,0.00014491,2]
[351761880,1738780239047,-500.0,0.00014491,2]
[351761882,1738780239061,-160.82808555,0.00014491,2]
[351761884,1738780239074,-495.71475009,0.00014491,2]
[351761887,1738780239089,-604.11,0.00014491,2]
[351761889,1738780239100,-500.0,0.00014491,2]
[351761891,1738780239111,-500.0,0.00014491,2]
[351761894,1738780239126,-500.0,0.00014491,2]
[351761896,1738780239138,-500.0,0.00014491,2]
[351761899,1738780239155,-8731.87,0.00014491,2]
[351761901,1738780239168,-917.08,0.00014491,2]
[351761903,1738780239181,-500.0,0.00014491,2]
[351761905,1738780239195,-1523.44,0.00014491,2]
[351761908,1738780239208,-564.60401182,0.00014491,2]
[351761910,1738780239221,-500.0,0.00014491,2]
[351761912,1738780239235,-2978.44,0.00014491,2]
[351761915,1738780239247,-1707.29,0.00014491,2]
[351761917,1738780239260,-500.0,0.00014491,2]
[351761919,1738780239273,-1157.59,0.00014491,2]
[351761922,1738780239285,-500.0,0.00014491,2]
[351761924,1738780239298,-39231.2,0.00014491,2]
[351761926,1738780239311,-1749.67,0.00014491,2]
[351761929,1738780239324,-732.1,0.00014491,2]
[351761931,1738780239336,-6114.26,0.00014491,2]
[351761933,1738780239348,-543.7,0.00014491,2]
[351761935,1738780239361,-500.0,0.00014491,2]
[351761938,1738780239374,-500.0,0.00014491,2]
[351761940,1738780239387,-500.0,0.00014491,2]
[351761942,1738780239399,-500.0,0.00014491,2]
[351761945,1738780239411,-500.0,0.00014491,2]
[351761948,1738780239423,-500.0,0.00014491,2]
[351761950,1738780239436,-500.0,0.00014491,2]
[351761953,1738780239449,-500.0,0.00014491,2]
[351761955,1738780239461,-500.0,0.00014491,2]
[351761957,1738780239474,-500.0,0.00014491,2]
[351761959,1738780239486,-500.0,0.00014491,2]
[351761962,1738780239498,-500.0,0.00014491,2]
[351761964,1738780239510,-500.0,0.00014491,2]
[351761966,1738780239523,-670.4,0.00014491,2]
[351761969,1738780239536,-1716.71,0.00014491,2]
[351761971,1738780239550,-8456.48,0.00014491,2]
[351761974,1738780239564,-2679.88,0.00014491,2]
[351761976,1738780239576,-500.0,0.00014491,2]
[351761978,1738780239588,-987.28,0.00014491,2]
[351761981,1738780239601,-669.88,0.00014491,2]
[351761983,1738780239613,-500.0,0.00014491,2]
[351761985,1738780239625,-500.0,0.00014491,2]
[351761988,1738780239637,-500.0,0.00014491,2]
[351761990,1738780239651,-500.0,0.00014491,2]
[351761992,1738780239663,-500.0,0.00014491,2]
[351761995,1738780239676,-540.86,0.00014491,2]
[351761997,1738780239689,-500.0,0.00014491,2]
[351761999,1738780239702,-3038.21,0.00014491,2]
[351762002,1738780239715,-607.8,0.00014491,2]
[351762004,1738780239728,-500.0,0.00014491,2]
[351762006,1738780239740,-500.0,0.00014491,2]
[351762009,1738780239755,-127316.91,0.00014491,2]
[351762011,1738780239767,-326.52367571,0.00014491,2]
[351762013,1738780239780,-637.14,0.00014491,2]
[351762016,1738780239793,-493.45439239,0.00014491,2]
[351762018,1738780239807,-500.0,0.00014491,2]
[351762020,1738780239821,-5356.49,0.00014491,2]
[351762023,1738780239834,-500.0,0.00014491,2]
[351762025,1738780239847,-606.85,0.00014491,2]
[351762027,1738780239860,-500.0,0.00014491,2]
[351762030,1738780239873,-500.0,0.00014491,2]
[351762032,1738780239886,-264.22260139,0.00014491,2]
[351762034,1738780239899,-3267.36,0.00014491,2]
[351762037,1738780239912,-500.0,0.00014491,2]
[351762039,1738780239924,-37060.69,0.00014491,2]
[351762041,1738780239936,-500.0,0.00014491,2]
[351762043,1738780239948,-500.0,0.00014491,2]
[351762046,1738780239960,-500.0,0.00014491,2]
[351762048,1738780239972,-1966.6,0.00014491,2]
[351762050,1738780239984,-500.0,0.00014491,2]
[351762053,1738780239997,-795.12,0.00014491,2]
[351762055,1738780240009,-500.0,0.00014491,2]
[351762057,1738780240021,-500.0,0.00014491,2]
[351762059,1738780240034,-500.0,0.00014492,2]
[351762062,1738780240046,-500.0,0.00014492,2]
[351762064,1738780240061,-500.0,0.00014492,2]
[351762066,1738780240074,-500.0,0.00014492,2]
[351762068,1738780240084,-500.0,0.00014492,2]
[351762071,1738780240096,-500.0,0.00014492,2]
[351762073,1738780240108,-500.0,0.00014492,2]
[351762075,1738780240120,-500.0,0.00014492,2]
[351762078,1738780240136,-500.0,0.00014492,2]
[351762080,1738780240149,-500.0,0.00014492,2]
[351762082,1738780240160,-501.79,0.00014492,2]
[351762085,1738780240172,-500.0,0.00014492,2]
[351762089,1738780240184,-500.0,0.00014492,2]
[351762091,1738780240194,-500.0,0.00014492,2]
[351762093,1738780240205,-560.22,0.00014492,2]
[351762096,1738780240215,-500.0,0.00014492,2]
[351762099,1738780240225,-500.0,0.00014492,2]
[351762101,1738780240235,-500.0,0.00014492,2]
[351762103,1738780240245,-500.0,0.00014492,2]
[351762130,1738780240511,-500.0,0.00014492,2]
[351762133,1738780240533,-500.0,0.00014492,2]
[351762135,1738780240543,-500.0,0.00014492,2]
[351762137,1738780240552,-502.54,0.00014492,2]
[351762139,1738780240564,-500.0,0.00014492,2]
[351762141,1738780240575,-500.0,0.00014492,2]
[351762143,1738780240585,-500.0,0.00014492,2]
[351762145,1738780240595,-500.0,0.00014492,2]
[351762147,1738780240605,-719.67,0.00014492,2]
[351762149,1738780240614,-527.87139466,0.00014492,2]
[351762151,1738780240624,-500.0,0.00014492,2]
[351762153,1738780240633,-500.0,0.00014492,2]
[351762155,1738780240643,-500.0,0.00014492,2]
[351762157,1738780240652,-500.0,0.00014492,2]
[351762159,1738780240663,-500.0,0.00014492,2]
[351762161,1738780240673,-500.0,0.00014492,2]
[351762163,1738780240683,-873.8,0.00014492,2]
[351762165,1738780240692,-500.0,0.00014492,2]
[351762167,1738780240702,-714.78,0.00014492,2]
[351762169,1738780240711,-500.0,0.00014492,2]
[351762171,1738780240720,-500.0,0.00014492,2]
[351762173,1738780240730,-500.0,0.00014492,2]